[Event "*** Titled Tuesday Blitz"]
[Site "Chess.com"]
[Date "2019.02.05"]
[Round "8"]
[White "TristanCalistri"]
[Black "Gentlejimmy7"]
[Result "0-1"]
[WhiteElo "2236"]
[BlackElo "2303"]
[TimeControl "180+2"]
[EndTime "14:56:38 PST"]
[Termination "Gentlejimmy7 won by resignation"]

1. e4 {[%clk 0:03:00.6]} 1... e5 {[%clk 0:02:58.1]} 2. Nf3 {[%clk 0:03:01.3]}
2... Nc6 {[%clk 0:02:59.3]} 3. Bc4 {[%clk 0:03:02.2]} 3... Bc5 {[%clk
0:02:59.5]} 4. c3 {[%clk 0:03:02.9]} 4... Nf6 {[%clk 0:03:00.2]} 5. d3 {[%clk
0:03:04.5]} 5... d6 {[%clk 0:03:01]} 6. Bb3 {[%clk 0:02:57.5]} 6... Bb6 {[%clk
0:03:01.7]} 7. Nbd2 {[%clk 0:02:57.1]} 7... Ne7 {[%clk 0:03:03.3]} 8. Nc4 {[%clk
0:02:57.3]} 8... Ng6 {[%clk 0:03:04.3]} 9. O-O {[%clk 0:02:53.2]} 9... c6 {[%clk
0:03:04.9]} 10. Nxb6 {[%clk 0:02:54]} 10... axb6 {[%clk 0:03:06.2]} 11. Re1
{[%clk 0:02:48]} 11... h6 {[%clk 0:02:57.9]} 12. d4 {[%clk 0:02:47.1]} 12... Qe7
{[%clk 0:02:58.7]} 13. Bc2 {[%clk 0:02:45.3]} 13... O-O {[%clk 0:02:48.3]} 14.
h3 {[%clk 0:02:33.3]} 14... Re8 {[%clk 0:02:43.8]} 15. b3 {[%clk 0:02:14.7]}
15... b5 {[%clk 0:02:23.8]} 16. Kh2 {[%clk 0:02:00.4]} 16... Be6 {[%clk
0:02:12.1]} 17. Be3 {[%clk 0:01:48]} 17... Qc7 {[%clk 0:02:07.8]} 18. g3 {[%clk
0:01:43.9]} 18... Rad8 {[%clk 0:02:04.5]} 19. Qc1 {[%clk 0:01:40.9]} 19... h5
{[%clk 0:02:04.2]} 20. Bg5 {[%clk 0:01:34.8]} 20... Qe7 {[%clk 0:02:03.1]} 21.
Qb2 {[%clk 0:01:28.9]} 21... Bc8 {[%clk 0:02:03.6]} 22. Rad1 {[%clk 0:01:21.7]}
22... Qe6 {[%clk 0:02:04.7]} 23. Rd2 {[%clk 0:01:04.8]} 23... Qxh3+ {[%clk
0:02:03.4]} 24. Kg1 {[%clk 0:01:04.7]} 24... Bg4 {[%clk 0:01:36.2]} 25. Bd1
{[%clk 0:00:45.5]} 25... Bxf3 {[%clk 0:01:28.6]} 26. Bxf3 {[%clk 0:00:46.1]}
26... h4 {[%clk 0:01:30.3]} 27. Bg2 {[%clk 0:00:19.8]} 27... Qg4 {[%clk
0:01:31.1]} 28. Bxf6 {[%clk 0:00:19.7]} 28... gxf6 {[%clk 0:01:31.7]} 29. Re3
{[%clk 0:00:20.8]} 29... hxg3 {[%clk 0:01:29.5]} 30. Rxg3 {[%clk 0:00:21.3]}
30... Qf4 {[%clk 0:01:24.5]} 31. Rdd3 {[%clk 0:00:20.2]} 31... exd4 {[%clk
0:01:19.5]} 32. Rdf3 {[%clk 0:00:20.9]} 32... dxc3 {[%clk 0:01:14.4]} 33. Qxc3
{[%clk 0:00:21.4]} 33... Qe5 {[%clk 0:01:14.5]} 34. Qd2 {[%clk 0:00:21]} 34...
Kg7 {[%clk 0:01:14.4]} 35. Rf5 {[%clk 0:00:20.6]} 35... Qa1+ {[%clk 0:01:15.1]}
36. Bf1 {[%clk 0:00:20.3]} 36... Rh8 {[%clk 0:01:15.6]} 37. Qf4 {[%clk
0:00:19.9]} 37... Rh1+ {[%clk 0:01:14.4]} 38. Kxh1 {[%clk 0:00:21.1]} 38...
Qxf1+ {[%clk 0:01:15.8]} 0-1

[Event "*** Titled Tuesday Blitz"]
[Site "Chess.com"]
[Date "2019.02.05"]
[Round "8"]
[White "vovachesss"]
[Black "murmah2003"]
[Result "1-0"]
[WhiteElo "2592"]
[BlackElo "2645"]
[TimeControl "180+2"]
[EndTime "14:56:40 PST"]
[Termination "vovachesss won by resignation"]

1. d4 {[%clk 0:03:01.9]} 1... Nf6 {[%clk 0:03:00.4]} 2. Nf3 {[%clk 0:03:02.9]}
2... g6 {[%clk 0:03:01.2]} 3. Bg5 {[%clk 0:02:57.4]} 3... Bg7 {[%clk 0:03:01.5]}
4. Bxf6 {[%clk 0:02:58]} 4... Bxf6 {[%clk 0:03:01.6]} 5. e4 {[%clk 0:02:59.7]}
5... d6 {[%clk 0:03:03]} 6. c3 {[%clk 0:03:00.2]} 6... O-O {[%clk 0:03:04.3]} 7.
Nbd2 {[%clk 0:03:01.3]} 7... e5 {[%clk 0:03:03.4]} 8. dxe5 {[%clk 0:03:02.5]}
8... dxe5 {[%clk 0:03:05.3]} 9. Bc4 {[%clk 0:03:01.4]} 9... Qe7 {[%clk
0:03:03.6]} 10. Qe2 {[%clk 0:03:02.1]} 10... c6 {[%clk 0:03:04.7]} 11. h4 {[%clk
0:03:03.1]} 11... h5 {[%clk 0:03:04.6]} 12. O-O-O {[%clk 0:03:02.1]} 12... Bg4
{[%clk 0:03:01.5]} 13. Nf1 {[%clk 0:03:02.1]} 13... b5 {[%clk 0:02:26.3]} 14.
Bd3 {[%clk 0:02:56.4]} 14... Bxh4 {[%clk 0:02:15.3]} 15. Ne3 {[%clk 0:02:56.1]}
15... Bg5 {[%clk 0:02:11.4]} 16. Kb1 {[%clk 0:02:54.8]} 16... Bxf3 {[%clk
0:02:12.6]} 17. gxf3 {[%clk 0:02:47.2]} 17... Nd7 {[%clk 0:02:09.7]} 18. Rdg1
{[%clk 0:02:48.2]} 18... Rab8 {[%clk 0:01:57.6]} 19. Nf5 {[%clk 0:02:23.6]}
19... Qd8 {[%clk 0:01:17.3]} 20. f4 {[%clk 0:02:19.4]} 20... exf4 {[%clk
0:01:12.8]} 21. Rxh5 {[%clk 0:02:16]} 21... f3 {[%clk 0:00:29.8]} 22. Qxf3
{[%clk 0:01:55.5]} 22... Ne5 {[%clk 0:00:30.4]} 23. Qh1 {[%clk 0:01:05.6]} 23...
gxh5 {[%clk 0:00:16.7]} 24. Bc2 {[%clk 0:00:31.9]} 24... f6 {[%clk 0:00:13.3]}
25. f4 {[%clk 0:00:29.6]} 25... Ng4 {[%clk 0:00:04]} 26. Qxh5 {[%clk 0:00:27.9]}
26... Qe8 {[%clk 0:00:04.2]} 27. Qxg4 {[%clk 0:00:27.5]} 27... Rd8 {[%clk
0:00:02.6]} 28. fxg5 {[%clk 0:00:28]} 28... Kf7 {[%clk 0:00:03.9]} 29. Bb3+
{[%clk 0:00:22.6]} 1-0

[Event "*** Titled Tuesday Blitz"]
[Site "Chess.com"]
[Date "2019.02.05"]
[Round "8"]
[White "Al_Shima"]
[Black "fm_magua"]
[Result "0-1"]
[WhiteElo "2525"]
[BlackElo "2412"]
[TimeControl "180+2"]
[EndTime "14:56:41 PST"]
[Termination "fm_magua won on time"]

1. b3 {[%clk 0:03:01.9]} 1... g6 {[%clk 0:03:00]} 2. Bb2 {[%clk 0:03:02.7]} 2...
f6 {[%clk 0:03:01.5]} 3. h4 {[%clk 0:03:02.3]} 3... d6 {[%clk 0:03:01.2]} 4. h5
{[%clk 0:03:03.2]} 4... Bg7 {[%clk 0:03:02.6]} 5. d4 {[%clk 0:02:55.3]} 5... e5
{[%clk 0:03:01.6]} 6. d5 {[%clk 0:02:53.2]} 6... Nh6 {[%clk 0:02:52.4]} 7. e4
{[%clk 0:02:45.3]} 7... Nf7 {[%clk 0:02:52.4]} 8. hxg6 {[%clk 0:02:44.4]} 8...
hxg6 {[%clk 0:02:53.2]} 9. Rxh8+ {[%clk 0:02:44.5]} 9... Bxh8 {[%clk 0:02:50.7]}
10. Nd2 {[%clk 0:02:41.2]} 10... Qe7 {[%clk 0:02:51.2]} 11. Bb5+ {[%clk
0:02:40.4]} 11... Bd7 {[%clk 0:02:52.1]} 12. Bxd7+ {[%clk 0:02:38.6]} 12... Nxd7
{[%clk 0:02:52.7]} 13. Qg4 {[%clk 0:02:33]} 13... f5 {[%clk 0:02:33.3]} 14. Qxg6
{[%clk 0:02:18.4]} 14... fxe4 {[%clk 0:02:31.5]} 15. Nxe4 {[%clk 0:02:17.6]}
15... O-O-O {[%clk 0:02:29.5]} 16. Nf3 {[%clk 0:02:12.1]} 16... Kb8 {[%clk
0:02:30.4]} 17. O-O-O {[%clk 0:02:12.3]} 17... Nf6 {[%clk 0:02:23]} 18. Rh1
{[%clk 0:01:37.7]} 18... Nxe4 {[%clk 0:02:22.7]} 19. Qxe4 {[%clk 0:01:37.5]}
19... Ng5 {[%clk 0:02:21.2]} 20. Nxg5 {[%clk 0:01:20.8]} 20... Qxg5+ {[%clk
0:02:22]} 21. Kb1 {[%clk 0:01:21.4]} 21... Bg7 {[%clk 0:02:02.9]} 22. Bc1 {[%clk
0:01:21]} 22... Qf6 {[%clk 0:02:03.6]} 23. Be3 {[%clk 0:01:21.1]} 23... a6
{[%clk 0:01:58.3]} 24. a4 {[%clk 0:01:20.8]} 24... Rc8 {[%clk 0:01:55.8]} 25.
Rh5 {[%clk 0:01:16.2]} 25... c6 {[%clk 0:01:52]} 26. dxc6 {[%clk 0:00:58]} 26...
d5 {[%clk 0:01:38.4]} 27. Qb4 {[%clk 0:00:10.7]} 27... Qxc6 {[%clk 0:01:34.5]}
28. Qd2 {[%clk 0:00:07.3]} 28... d4 {[%clk 0:01:25.6]} 29. Bh6 {[%clk
0:00:07.6]} 29... Bh8 {[%clk 0:01:19.8]} 30. f3 {[%clk 0:00:07.8]} 30... Ka8
{[%clk 0:01:03.4]} 31. Qd3 {[%clk 0:00:08.5]} 31... Qe8 {[%clk 0:00:53.7]} 32.
g4 {[%clk 0:00:07.4]} 32... Rc3 {[%clk 0:00:47.3]} 33. Qf5 {[%clk 0:00:08.4]}
33... d3 {[%clk 0:00:42.2]} 34. cxd3 {[%clk 0:00:02.8]} 34... Rxb3+ {[%clk
0:00:42.5]} 0-1

[Event "*** Titled Tuesday Blitz"]
[Site "Chess.com"]
[Date "2019.02.05"]
[Round "8"]
[White "GMBenjaminBok"]
[Black "vugarrasulov"]
[Result "1-0"]
[WhiteElo "2870"]
[BlackElo "2847"]
[TimeControl "180+2"]
[EndTime "14:56:54 PST"]
[Termination "GMBenjaminBok won by resignation"]

1. Nf3 {[%clk 0:03:01.9]} 1... c5 {[%clk 0:03:00.9]} 2. c4 {[%clk 0:03:01.1]}
2... g6 {[%clk 0:03:01.8]} 3. Nc3 {[%clk 0:02:55.5]} 3... Bg7 {[%clk 0:03:01.9]}
4. g3 {[%clk 0:02:57]} 4... Nc6 {[%clk 0:03:02.2]} 5. Bg2 {[%clk 0:02:57.9]}
5... e6 {[%clk 0:03:03.7]} 6. d4 {[%clk 0:02:51.9]} 6... cxd4 {[%clk 0:03:04.4]}
7. Nb5 {[%clk 0:02:51.1]} 7... d5 {[%clk 0:03:05.7]} 8. cxd5 {[%clk 0:02:50.4]}
8... Qa5+ {[%clk 0:03:06.8]} 9. Nd2 {[%clk 0:02:50.8]} 9... Qxb5 {[%clk
0:02:59.7]} 10. a4 {[%clk 0:02:35.4]} 10... Qa6 {[%clk 0:02:55.3]} 11. dxc6
{[%clk 0:02:34.7]} 11... bxc6 {[%clk 0:02:52]} 12. Ne4 {[%clk 0:02:09.6]} 12...
Ne7 {[%clk 0:02:12.7]} 13. Nd6+ {[%clk 0:02:07.1]} 13... Kf8 {[%clk 0:02:13.9]}
14. O-O {[%clk 0:02:07.4]} 14... Rb8 {[%clk 0:02:11.9]} 15. b4 {[%clk
0:01:48.7]} 15... Be5 {[%clk 0:01:56.7]} 16. Bh6+ {[%clk 0:01:45.9]} 16... Kg8
{[%clk 0:01:58]} 17. b5 {[%clk 0:01:35.9]} 17... cxb5 {[%clk 0:01:52.2]} 18.
Nxb5 {[%clk 0:01:22.2]} 18... Nf5 {[%clk 0:01:51.2]} 19. Qc1 {[%clk 0:01:13.5]}
19... d3 {[%clk 0:01:41.5]} 20. Bf4 {[%clk 0:01:10.7]} 20... Bxa1 {[%clk
0:01:03.8]} 21. Qxa1 {[%clk 0:01:04.7]} 21... Rxb5 {[%clk 0:01:04]} 22. axb5
{[%clk 0:01:02.8]} 22... Qxa1 {[%clk 0:01:04.7]} 23. Rxa1 {[%clk 0:01:04.7]}
23... Kg7 {[%clk 0:00:45.7]} 24. exd3 {[%clk 0:01:01.3]} 24... Rd8 {[%clk
0:00:45.4]} 25. Rxa7 {[%clk 0:00:59.8]} 25... Rxd3 {[%clk 0:00:44.4]} 26. Be5+
{[%clk 0:00:57.3]} 26... Kh6 {[%clk 0:00:45.3]} 27. Rxf7 {[%clk 0:00:53.7]}
27... Bd7 {[%clk 0:00:37.6]} 28. h4 {[%clk 0:00:39.7]} 28... Bxb5 {[%clk
0:00:26]} 29. Bf4+ {[%clk 0:00:32.8]} 29... g5 {[%clk 0:00:27.4]} 30. hxg5+
{[%clk 0:00:29]} 30... Kg6 {[%clk 0:00:27.9]} 31. Rf6+ {[%clk 0:00:29.5]} 31...
Kg7 {[%clk 0:00:29.6]} 32. Rxe6 {[%clk 0:00:30.9]} 32... Nd4 {[%clk 0:00:21.3]}
33. Be5+ {[%clk 0:00:26.9]} 33... Kf7 {[%clk 0:00:22.5]} 34. Rf6+ {[%clk
0:00:19.8]} 34... Ke7 {[%clk 0:00:24]} 35. Be4 {[%clk 0:00:19.8]} 35... Rd1+
{[%clk 0:00:20.5]} 36. Kh2 {[%clk 0:00:20.7]} 36... Ne6 {[%clk 0:00:21.1]} 37.
Rh6 {[%clk 0:00:21.1]} 37... Nxg5 {[%clk 0:00:21.8]} 38. Bf6+ {[%clk 0:00:21.4]}
1-0

[Event "*** Titled Tuesday Blitz"]
[Site "Chess.com"]
[Date "2019.02.05"]
[Round "8"]
[White "GMsKoRPioN"]
[Black "Quiet_Desperation"]
[Result "1-0"]
[WhiteElo "2561"]
[BlackElo "2415"]
[TimeControl "180+2"]
[EndTime "14:57:05 PST"]
[Termination "GMsKoRPioN won by resignation"]

1. d4 {[%clk 0:02:58.5]} 1... Nf6 {[%clk 0:02:57.6]} 2. c4 {[%clk 0:02:59.7]}
2... e6 {[%clk 0:02:58.7]} 3. Nc3 {[%clk 0:03:01]} 3... Bb4 {[%clk 0:02:59.5]}
4. Qc2 {[%clk 0:03:02.3]} 4... Nc6 {[%clk 0:03:00.5]} 5. Nf3 {[%clk 0:02:57.2]}
5... d6 {[%clk 0:02:59.5]} 6. a3 {[%clk 0:02:57.1]} 6... Bxc3+ {[%clk
0:02:59.5]} 7. Qxc3 {[%clk 0:02:59]} 7... Qe7 {[%clk 0:03:00.6]} 8. g3 {[%clk
0:02:56.9]} 8... O-O {[%clk 0:03:01.6]} 9. Bg2 {[%clk 0:02:57.7]} 9... e5 {[%clk
0:03:03.2]} 10. dxe5 {[%clk 0:02:59]} 10... dxe5 {[%clk 0:03:04]} 11. O-O {[%clk
0:02:55.9]} 11... Bg4 {[%clk 0:03:04.5]} 12. b4 {[%clk 0:02:41.1]} 12... Rfe8
{[%clk 0:03:03.3]} 13. e3 {[%clk 0:02:22.8]} 13... Rad8 {[%clk 0:02:58.5]} 14.
b5 {[%clk 0:02:22.3]} 14... e4 {[%clk 0:02:54.4]} 15. Ng5 {[%clk 0:01:11.4]}
15... Ne5 {[%clk 0:02:36.6]} 16. Bb2 {[%clk 0:01:09.5]} 16... Nf3+ {[%clk
0:02:15.1]} 17. Nxf3 {[%clk 0:01:02.5]} 17... exf3 {[%clk 0:02:16.2]} 18. Bh1
{[%clk 0:01:03.6]} 18... Qe4 {[%clk 0:02:03.6]} 19. Rfd1 {[%clk 0:01:01.8]}
19... h5 {[%clk 0:01:48.1]} 20. Rd4 {[%clk 0:00:51.6]} 20... Rxd4 {[%clk
0:01:46.5]} 21. Qxd4 {[%clk 0:00:53.4]} 21... Qxd4 {[%clk 0:01:36.6]} 22. Bxd4
{[%clk 0:00:55.1]} 22... Ne4 {[%clk 0:01:24.5]} 23. h3 {[%clk 0:00:51.7]} 23...
Bxh3 {[%clk 0:01:23.4]} 24. Bxf3 {[%clk 0:00:52.9]} 24... Bg4 {[%clk 0:01:18.5]}
25. Bxg4 {[%clk 0:00:25.8]} 25... hxg4 {[%clk 0:01:20.4]} 26. Rc1 {[%clk
0:00:20.9]} 26... b6 {[%clk 0:01:07.7]} 27. c5 {[%clk 0:00:21]} 27... Re6 {[%clk
0:00:38.6]} 28. cxb6 {[%clk 0:00:21]} 28... cxb6 {[%clk 0:00:38.3]} 29. Rc8+
{[%clk 0:00:22.1]} 29... Kh7 {[%clk 0:00:34.6]} 30. Rc7 {[%clk 0:00:23.9]} 30...
Ng5 {[%clk 0:00:32.6]} 31. Kf1 {[%clk 0:00:18.7]} 31... Nf3 {[%clk 0:00:33.1]}
32. Rxf7 {[%clk 0:00:19]} 32... Rh6 {[%clk 0:00:28.7]} 33. Rxg7+ {[%clk
0:00:15.3]} 33... Kh8 {[%clk 0:00:27.8]} 34. Rxg4+ {[%clk 0:00:16.7]} 34... Nxd4
{[%clk 0:00:27.7]} 35. Rxd4 {[%clk 0:00:16.4]} 35... Rh1+ {[%clk 0:00:29.6]} 36.
Kg2 {[%clk 0:00:17.5]} 36... Rb1 {[%clk 0:00:31.4]} 37. a4 {[%clk 0:00:18.2]}
37... Ra1 {[%clk 0:00:33.1]} 38. Rd8+ {[%clk 0:00:19.2]} 1-0

[Event "*** Titled Tuesday Blitz"]
[Site "Chess.com"]
[Date "2019.02.05"]
[Round "8"]
[White "GremioPrudente"]
[Black "sandager"]
[Result "0-1"]
[WhiteElo "2055"]
[BlackElo "2135"]
[TimeControl "180+2"]
[EndTime "14:57:06 PST"]
[Termination "sandager won on time"]

1. Nf3 {[%clk 0:03:01.9]} 1... Nf6 {[%clk 0:03:00]} 2. d4 {[%clk 0:03:01.7]}
2... g6 {[%clk 0:03:01.2]} 3. Bg5 {[%clk 0:03:00.3]} 3... Bg7 {[%clk 0:03:02.2]}
4. Nbd2 {[%clk 0:03:01.3]} 4... d5 {[%clk 0:03:02]} 5. c3 {[%clk 0:02:57.7]}
5... Nbd7 {[%clk 0:03:00.1]} 6. e3 {[%clk 0:02:51.7]} 6... O-O {[%clk
0:02:59.9]} 7. Bd3 {[%clk 0:02:51.7]} 7... c5 {[%clk 0:03:00.4]} 8. O-O {[%clk
0:02:47.1]} 8... b6 {[%clk 0:03:01]} 9. Qe2 {[%clk 0:02:38.4]} 9... Bb7 {[%clk
0:03:01.2]} 10. Rad1 {[%clk 0:02:36.1]} 10... Qc7 {[%clk 0:02:55.6]} 11. Rfe1
{[%clk 0:02:33.8]} 11... Rfe8 {[%clk 0:02:54.8]} 12. Bf4 {[%clk 0:02:29]} 12...
Qc8 {[%clk 0:02:42.2]} 13. Ne5 {[%clk 0:02:27.9]} 13... Ne4 {[%clk 0:02:34]} 14.
Nxe4 {[%clk 0:02:16.4]} 14... Nxe5 {[%clk 0:02:21.3]} 15. Bxe5 {[%clk
0:02:14.7]} 15... dxe4 {[%clk 0:02:20.5]} 16. Bb5 {[%clk 0:02:11]} 16... Rd8
{[%clk 0:02:13.3]} 17. Bxg7 {[%clk 0:02:09.2]} 17... Kxg7 {[%clk 0:02:13.5]} 18.
dxc5 {[%clk 0:01:50.4]} 18... Qxc5 {[%clk 0:02:12.9]} 19. Ba6 {[%clk 0:01:34.9]}
19... Bc6 {[%clk 0:02:08.3]} 20. Qc4 {[%clk 0:01:32.2]} 20... Qxc4 {[%clk
0:01:57.1]} 21. Bxc4 {[%clk 0:01:31.4]} 21... e6 {[%clk 0:01:57.2]} 22. Rd4
{[%clk 0:01:25]} 22... e5 {[%clk 0:01:44.2]} 23. Rdd1 {[%clk 0:01:15.3]} 23...
Kf6 {[%clk 0:01:44.7]} 24. Kf1 {[%clk 0:01:14.6]} 24... Ke7 {[%clk 0:01:44.2]}
25. Ke2 {[%clk 0:01:11.4]} 25... f6 {[%clk 0:01:40.5]} 26. Rxd8 {[%clk
0:01:09.4]} 26... Rxd8 {[%clk 0:01:40]} 27. Rd1 {[%clk 0:01:10.9]} 27... Rxd1
{[%clk 0:01:40.2]} 28. Kxd1 {[%clk 0:01:11.9]} 28... h6 {[%clk 0:01:39.8]} 29.
Kc2 {[%clk 0:01:06]} 29... Kd6 {[%clk 0:01:37.1]} 30. Bf7 {[%clk 0:01:05.5]}
30... g5 {[%clk 0:01:36.8]} 31. b4 {[%clk 0:01:01.4]} 31... Bd5 {[%clk
0:01:36.5]} 32. Bxd5 {[%clk 0:00:57.4]} 32... Kxd5 {[%clk 0:01:37.1]} 33. Kb3
{[%clk 0:00:58.6]} 33... b5 {[%clk 0:01:37.6]} 34. f3 {[%clk 0:00:49.3]} 34...
f5 {[%clk 0:01:30.6]} 35. a3 {[%clk 0:00:48]} 35... exf3 {[%clk 0:01:12.8]} 36.
gxf3 {[%clk 0:00:48.1]} 36... e4 {[%clk 0:01:11.4]} 37. fxe4+ {[%clk 0:00:35.3]}
37... Kxe4 {[%clk 0:01:11.8]} 38. c4 {[%clk 0:00:34.7]} 38... bxc4+ {[%clk
0:01:11]} 39. Kxc4 {[%clk 0:00:36.3]} 39... Kxe3 {[%clk 0:01:12.2]} 40. a4
{[%clk 0:00:35.4]} 40... f4 {[%clk 0:01:13.1]} 41. b5 {[%clk 0:00:37.3]} 41...
f3 {[%clk 0:01:14.4]} 42. a5 {[%clk 0:00:38.1]} 42... f2 {[%clk 0:01:14.6]} 43.
b6 {[%clk 0:00:39.7]} 43... f1=Q+ {[%clk 0:01:15.1]} 44. Kc5 {[%clk 0:00:40.5]}
44... Qf5+ {[%clk 0:01:12.4]} 45. Kc6 {[%clk 0:00:41]} 45... Qxa5 {[%clk
0:01:08.3]} 0-1

[Event "*** Titled Tuesday Blitz"]
[Site "Chess.com"]
[Date "2019.02.05"]
[Round "8"]
[White "Jospem"]
[Black "xberli"]
[Result "1-0"]
[WhiteElo "2866"]
[BlackElo "2545"]
[TimeControl "180+2"]
[EndTime "14:57:08 PST"]
[Termination "Jospem won by resignation"]

1. e4 {[%clk 0:03:01.9]} 1... c5 {[%clk 0:02:59]} 2. Nf3 {[%clk 0:03:03.3]} 2...
d6 {[%clk 0:03:00.2]} 3. d4 {[%clk 0:03:04.9]} 3... cxd4 {[%clk 0:03:02.1]} 4.
Nxd4 {[%clk 0:03:06.5]} 4... Nf6 {[%clk 0:03:03.7]} 5. Nc3 {[%clk 0:03:08.1]}
5... a6 {[%clk 0:03:05.3]} 6. f3 {[%clk 0:03:09.6]} 6... e5 {[%clk 0:03:06.8]}
7. Nb3 {[%clk 0:03:11.2]} 7... Be6 {[%clk 0:02:58.4]} 8. Be3 {[%clk 0:03:12.6]}
8... h5 {[%clk 0:02:58.7]} 9. Qd2 {[%clk 0:03:14]} 9... Nbd7 {[%clk 0:02:59.5]}
10. O-O-O {[%clk 0:03:15.6]} 10... Rc8 {[%clk 0:02:59.8]} 11. Kb1 {[%clk
0:03:16.4]} 11... Be7 {[%clk 0:02:51.7]} 12. h4 {[%clk 0:03:16.7]} 12... Nb6
{[%clk 0:02:50.8]} 13. Bg5 {[%clk 0:03:17.2]} 13... Nc4 {[%clk 0:02:15.8]} 14.
Bxc4 {[%clk 0:03:16.9]} 14... Rxc4 {[%clk 0:02:17.7]} 15. Bxf6 {[%clk
0:03:12.7]} 15... gxf6 {[%clk 0:02:18.3]} 16. Qd3 {[%clk 0:03:10.2]} 16... Qc7
{[%clk 0:02:11.1]} 17. Nd5 {[%clk 0:02:57]} 17... Bxd5 {[%clk 0:02:06.3]} 18.
Qxd5 {[%clk 0:02:58.9]} 18... b5 {[%clk 0:02:02.1]} 19. c3 {[%clk 0:02:46.3]}
19... Rg8 {[%clk 0:01:54.9]} 20. Qd2 {[%clk 0:02:33.4]} 20... Kd7 {[%clk
0:01:45.2]} 21. Qe2 {[%clk 0:02:34.1]} 21... Rb8 {[%clk 0:01:34.4]} 22. Nd2
{[%clk 0:02:34.3]} 22... Rc6 {[%clk 0:01:23.6]} 23. Nf1 {[%clk 0:02:25.6]} 23...
b4 {[%clk 0:01:24.2]} 24. c4 {[%clk 0:02:27.3]} 24... b3 {[%clk 0:01:19.1]} 25.
a3 {[%clk 0:02:26.2]} 25... Rxc4 {[%clk 0:01:12.3]} 26. Ne3 {[%clk 0:02:26.7]}
26... Rc6 {[%clk 0:00:57.1]} 27. Nd5 {[%clk 0:02:18.6]} 27... Rc2 {[%clk
0:00:57.2]} 28. Qd3 {[%clk 0:02:17.9]} 28... Qc6 {[%clk 0:00:49.3]} 29. Ne3
{[%clk 0:02:02.6]} 29... Rc5 {[%clk 0:00:37.9]} 30. Rc1 {[%clk 0:01:56.7]} 30...
Rc8 {[%clk 0:00:32.2]} 31. Rxc5 {[%clk 0:01:56.2]} 31... Qxc5 {[%clk 0:00:33]}
32. Qxb3 {[%clk 0:01:55.7]} 32... a5 {[%clk 0:00:24.1]} 33. Nd5 {[%clk
0:01:51.7]} 33... Kd8 {[%clk 0:00:13.1]} 34. Rd1 {[%clk 0:01:47.4]} 34... Qc6
{[%clk 0:00:09.2]} 35. Qb6+ {[%clk 0:01:37]} 35... Qxb6 {[%clk 0:00:09]} 36.
Nxb6 {[%clk 0:01:38.9]} 36... Rb8 {[%clk 0:00:09.6]} 37. Nc4 {[%clk 0:01:38.5]}
37... Kd7 {[%clk 0:00:08.1]} 38. Nxa5 {[%clk 0:01:37.3]} 38... Ke6 {[%clk
0:00:08.9]} 39. Nc4 {[%clk 0:01:33.5]} 39... Rg8 {[%clk 0:00:09.2]} 40. Ne3
{[%clk 0:01:33.2]} 40... f5 {[%clk 0:00:08.5]} 41. exf5+ {[%clk 0:01:33.6]}
41... Kd7 {[%clk 0:00:09.6]} 42. g4 {[%clk 0:01:30.3]} 42... Bxh4 {[%clk
0:00:09.5]} 43. Nc4 {[%clk 0:01:31.3]} 43... Ke7 {[%clk 0:00:09.2]} 44. gxh5
{[%clk 0:01:16.2]} 44... Rd8 {[%clk 0:00:10.1]} 45. a4 {[%clk 0:01:16.4]} 45...
Bf6 {[%clk 0:00:10.7]} 46. Nb6 {[%clk 0:01:16.6]} 46... Bh8 {[%clk 0:00:06.7]}
47. a5 {[%clk 0:01:17.3]} 47... Rb8 {[%clk 0:00:06.2]} 48. h6 {[%clk 0:01:18.7]}
48... e4 {[%clk 0:00:04.6]} 49. fxe4 {[%clk 0:01:19.6]} 49... Be5 {[%clk
0:00:05.8]} 50. h7 {[%clk 0:01:19.6]} 50... Kf6 {[%clk 0:00:06.7]} 51. Nd7+
{[%clk 0:01:20.1]} 1-0

[Event "*** Titled Tuesday Blitz"]
[Site "Chess.com"]
[Date "2019.02.05"]
[Round "8"]
[White "WPWPWP-2015"]
[Black "nochewycandy"]
[Result "1-0"]
[WhiteElo "2343"]
[BlackElo "2335"]
[TimeControl "180+2"]
[EndTime "14:57:15 PST"]
[Termination "WPWPWP-2015 won by resignation"]

1. e4 {[%clk 0:03:01.9]} 1... g6 {[%clk 0:02:59.8]} 2. d4 {[%clk 0:03:02.2]}
2... Bg7 {[%clk 0:03:01.7]} 3. Nc3 {[%clk 0:03:02.9]} 3... d6 {[%clk 0:03:02.6]}
4. h3 {[%clk 0:03:03.1]} 4... a6 {[%clk 0:03:02.1]} 5. a4 {[%clk 0:03:03]} 5...
b6 {[%clk 0:03:02.7]} 6. Nf3 {[%clk 0:03:03.1]} 6... e6 {[%clk 0:03:00.6]} 7.
Bg5 {[%clk 0:03:02.8]} 7... Ne7 {[%clk 0:03:01.5]} 8. Be2 {[%clk 0:03:02.7]}
8... h6 {[%clk 0:03:02.9]} 9. Be3 {[%clk 0:03:03.2]} 9... Nd7 {[%clk 0:03:03.1]}
10. Qd2 {[%clk 0:03:04]} 10... Bb7 {[%clk 0:03:02.4]} 11. O-O {[%clk 0:03:03.4]}
11... g5 {[%clk 0:03:00.5]} 12. Ne1 {[%clk 0:02:59.9]} 12... Ng6 {[%clk
0:03:00.2]} 13. Bh5 {[%clk 0:02:57.6]} 13... O-O {[%clk 0:02:59.7]} 14. Nd3
{[%clk 0:02:57.3]} 14... Nf6 {[%clk 0:02:52.1]} 15. Bxg6 {[%clk 0:02:51.3]}
15... fxg6 {[%clk 0:02:54]} 16. e5 {[%clk 0:02:49.3]} 16... Ne4 {[%clk
0:02:47.4]} 17. Nxe4 {[%clk 0:02:37.4]} 17... Bxe4 {[%clk 0:02:49.3]} 18. f3
{[%clk 0:02:28.8]} 18... Bxd3 {[%clk 0:02:23.5]} 19. Qxd3 {[%clk 0:02:27.8]}
19... dxe5 {[%clk 0:02:24.4]} 20. Qxg6 {[%clk 0:02:20.6]} 20... exd4 {[%clk
0:02:25.1]} 21. Qxe6+ {[%clk 0:02:19.9]} 21... Kh8 {[%clk 0:02:25.8]} 22. Bf2
{[%clk 0:02:15.2]} 22... Qe8 {[%clk 0:02:20]} 23. Qc4 {[%clk 0:02:13.6]} 23...
c5 {[%clk 0:02:18.6]} 24. Rfe1 {[%clk 0:02:11.2]} 24... Qd7 {[%clk 0:02:14.2]}
25. Re4 {[%clk 0:02:09.3]} 25... b5 {[%clk 0:01:41.2]} 26. Qxc5 {[%clk
0:01:50.3]} 26... Rac8 {[%clk 0:01:41.8]} 27. Qb4 {[%clk 0:00:52.4]} 27... Rxc2
{[%clk 0:01:32.3]} 28. Re7 {[%clk 0:00:39.5]} 28... Qd5 {[%clk 0:00:34.4]} 29.
Rd1 {[%clk 0:00:32.8]} 29... d3 {[%clk 0:00:33.7]} 30. axb5 {[%clk 0:00:18.7]}
30... axb5 {[%clk 0:00:26.1]} 31. b3 {[%clk 0:00:11.1]} 31... d2 {[%clk
0:00:16.1]} 32. Kh2 {[%clk 0:00:07]} 32... Be5+ {[%clk 0:00:13.3]} 33. Rxe5
{[%clk 0:00:04.1]} 33... Qxe5+ {[%clk 0:00:14.2]} 34. Bg3 {[%clk 0:00:05.3]}
34... Qe2 {[%clk 0:00:15]} 35. Qxf8+ {[%clk 0:00:05.2]} 35... Kh7 {[%clk
0:00:16.5]} 36. Qf5+ {[%clk 0:00:06]} 36... Kh8 {[%clk 0:00:18.1]} 37. Qxc2
{[%clk 0:00:07]} 37... Kg8 {[%clk 0:00:17.5]} 38. Rxd2 {[%clk 0:00:08]} 38...
Qe6 {[%clk 0:00:18.1]} 39. Qc7 {[%clk 0:00:08]} 1-0